No of Transactions,Dept_Family,Entity_Name,Cert Date,Supplier Name,Reference,Gross Amt,Group/Department,Type of Expenditure - Subjective Codes
1,DCMS,Historic England,09/09/2022,Appleby Town Council,0082006210,"25,031.00",Regions Group-North West - RD,Grants Historic Buildings
2,DCMS,Historic England,07/09/2022,B F Keane Electrical Contractors Limited,0040142601,"-30,562.07",Governance & Legal-Office Estate,Repairs
3,DCMS,Historic England,07/09/2022,B F Keane Electrical Contractors Limited,0040142608,"36,674.48",Governance & Legal-Office Estate,Repairs
4,DCMS,Historic England,20/09/2022,"BNP Paribas Real Estate, Rent / Services",0040142886,"-42,400.13",Governance & Legal-Office Estate,Building Service Charges
5,DCMS,Historic England,02/09/2022,Burges Salmon LLP,0040142607,"10,000.00",Shrewsbury Flax Mill Maltings-Shrewsbury Flax Mill Maltings,Operational Heritage Buildings
6,DCMS,Historic England,02/09/2022,Burges Salmon LLP,0040142607,"281,600.00",Shrewsbury Flax Mill Maltings-Shrewsbury Flax Mill Maltings,Operational Heritage Buildings
7,DCMS,Historic England,21/09/2022,CDW UK,0040141638,"97,610.90",Corporate Services-IMT,Network Contracts
8,DCMS,Historic England,01/09/2022,CDW UK,0040142496,"188,232.92",Corporate Services-IMT,WIP Professional Works Advice
9,DCMS,Historic England,01/09/2022,CDW UK,0040142497,"37,758.18",Corporate Services-IMT,WIP Professional Works Advice
10,DCMS,Historic England,14/09/2022,Cornerstone Barristers,0040142686,"52,590.00",Governance & Legal-Governance & Legal Department,Legal Fees
11,DCMS,Historic England,12/09/2022,Council British Arch York,0081006211,"35,000.00",Business Improvement-Grants,Grants Historic Environment
12,DCMS,Historic England,21/09/2022,Croft Building and Conservation Ltd,0040142880,"62,400.00",Shrewsbury Flax Mill Maltings-Shrewsbury Flax Mill Maltings,Works (Non Office)
13,DCMS,Historic England,21/09/2022,Croft Building and Conservation Ltd,0040142881,"249,600.00",Shrewsbury Flax Mill Maltings-Shrewsbury Flax Mill Maltings,Works (Non Office)
14,DCMS,Historic England,21/09/2022,Croft Building and Conservation Ltd,0040142882,"18,000.00",Shrewsbury Flax Mill Maltings-Shrewsbury Flax Mill Maltings,Works (Non Office)
15,DCMS,Historic England,21/09/2022,Croft Building and Conservation Ltd,0040142882,"17,760.96",Shrewsbury Flax Mill Maltings-Shrewsbury Flax Mill Maltings,Works (Non Office)
16,DCMS,Historic England,21/09/2022,Croft Building and Conservation Ltd,0040142882,"9,839.04",Shrewsbury Flax Mill Maltings-Shrewsbury Flax Mill Maltings,Works (Non Office)
17,DCMS,Historic England,21/09/2022,Croft Building and Conservation Ltd,0040142883,"93,600.00",Shrewsbury Flax Mill Maltings-Shrewsbury Flax Mill Maltings,Works (Non Office)
18,DCMS,Historic England,07/09/2022,Desertpool Limited,0040142588,"25,024.43",Governance & Legal-Office Estate,Repairs
19,DCMS,Historic England,07/09/2022,Desertpool Limited,0040142630,"-27,403.69",Governance & Legal-Office Estate,Repairs
20,DCMS,Historic England,30/09/2022,Eden District Council,0090516453,"102,817.00",Regions Group-North West - RD,Grants Area
21,DCMS,Historic England,06/09/2022,EDF  ,0030000768,"34,838.30",Corporate Services-Facilities Management,Electricity
22,DCMS,Historic England,29/09/2022,EDF  ,0030000790,"36,606.10",Corporate Services-Facilities Management,Electricity
23,DCMS,Historic England,16/09/2022,Freidman FM Ltd,0040142683,"16,231.70",Corporate Services-Facilities Management,Maintenance
24,DCMS,Historic England,16/09/2022,Freidman FM Ltd,0040142683,"17,658.24",Corporate Services-Facilities Management,Maintenance
25,DCMS,Historic England,16/09/2022,Freidman FM Ltd,0040142683,"1,562.66",Corporate Services-Facilities Management,Maintenance
26,DCMS,Historic England,16/09/2022,Freidman FM Ltd,0040142683,"10,251.01",Corporate Services-Facilities Management,Office Cleaning
27,DCMS,Historic England,16/09/2022,Freidman FM Ltd,0040142683,"9,432.19",Corporate Services-Facilities Management,Security
28,DCMS,Historic England,23/09/2022,Friends of Shenstone Tower,0082006212,"37,283.00",Regions Group-Midlands - RD,Grants Historic Buildings
29,DCMS,Historic England,23/09/2022,Friends of Shenstone Tower,0082006214,"46,588.00",Regions Group-Midlands - RD,Grants Historic Buildings
30,DCMS,Historic England,27/09/2022,Government Property Agency-RENT PAYABLE,0040142836,"59,062.50",Governance & Legal-Office Estate,Rent Payable (Building)
31,DCMS,Historic England,27/09/2022,Government Property Agency-RENT PAYABLE,0040142836,"3,645.00",Governance & Legal-Office Estate,Bought in Advice
32,DCMS,Historic England,27/09/2022,Government Property Agency-RENT PAYABLE,0040142837,"55,017.12",Governance & Legal-Office Estate,Rent Payable (Building)
33,DCMS,Historic England,27/09/2022,Government Property Agency-RENT PAYABLE,0040142837,"3,395.34",Governance & Legal-Office Estate,Bought in Advice
34,DCMS,Historic England,27/09/2022,Government Property Agency-RENT PAYABLE,0040142838,"59,062.50",Governance & Legal-Office Estate,Rent Payable (Building)
35,DCMS,Historic England,27/09/2022,Government Property Agency-RENT PAYABLE,0040142838,"3,645.00",Governance & Legal-Office Estate,Bought in Advice
36,DCMS,Historic England,01/09/2022,GTT-EMA Ltd,0040142380,"47,445.12",Corporate Services-IMT,Network Contracts
37,DCMS,Historic England,08/09/2022,Harlow Property Management Ltd - Rent,0040142666,"54,750.00",Governance & Legal-Office Estate,Rent Payable (Building)
38,DCMS,Historic England,30/09/2022,Leeds City Council,0083001819,"41,754.00",Regions Group-High Str (HAZ) - Regions,Grants Area
39,DCMS,Historic England,26/09/2022,Morris Hargreaves McIntyre,0040142658,"44,357.22",Business Improvement-Grants,Bought in Advice
40,DCMS,Historic England,06/09/2022,"Remains of Carclew House, Trevorick, Carclew, Perran-ar-Worthal",0082006208,"31,625.00",Regions Group-South West - RD,Grants Historic Buildings
41,DCMS,Historic England,27/09/2022,MSDS Marine Ltd,0040142849,"27,699.76",Business Improvement-Grants,Historic Env Commissions VAT
42,DCMS,Historic England,13/09/2022,Ratcliffes,0040142766,"307,500.00",Governance & Legal-Office Estate,Rent Payable (Building)
43,DCMS,Historic England,08/09/2022,Savills (UK) Ltd,0040142591,"9,868.80",Governance & Legal-Office Estate,Building Service Charges
44,DCMS,Historic England,08/09/2022,Savills (UK) Ltd,0040142591,"61,416.90",Governance & Legal-Office Estate,Rent Payable (Building)
45,DCMS,Historic England,21/09/2022,SoftwareOne UK Ltd,0040142599,"71,390.71",Corporate Services-IMT,Hosting
46,DCMS,Historic England,01/09/2022,Travel Planet,0040142463,"7,128.22",Corporate Services-Corporate,Travel Planet Control
47,DCMS,Historic England,01/09/2022,Travel Planet,0040142463,"1,038.37",Corporate Services-Corporate,Travel Planet Control
48,DCMS,Historic England,01/09/2022,Travel Planet,0040142463,"5,739.83",Corporate Services-Corporate,Travel Planet Control
49,DCMS,Historic England,01/09/2022,Travel Planet,0040142463,"22,136.14",Corporate Services-Corporate,Travel Planet Control
50,DCMS,Historic England,21/09/2022,University of Bradford,0040142518,"30,685.33",Policy & Evidence-National Specialist Services,IRO Research Grants
51,DCMS,Historic England,21/09/2022,University of Bradford,0040142519,"30,685.33",Policy & Evidence-National Specialist Services,IRO Research Grants
52,DCMS,Historic England,21/09/2022,University of Bradford,0040142520,"30,685.33",Policy & Evidence-National Specialist Services,IRO Research Grants
53,DCMS,Historic England,21/09/2022,Vodafone Corporate Ltd,0040142051,"43,090.88",Corporate Services-IMT,Telephony
54,DCMS,Historic England,21/09/2022,Vodafone Corporate Ltd,0040142885,"-43,090.88",Corporate Services-IMT,Telephony
55,DCMS,Historic England,06/09/2022,Wallingford Town Council,0082006207,"125,350.00",Regions Group-London & South East - RD,Grants Historic Buildings
56,DCMS,Historic England,01/09/2022,XMA Limited,0040142511,"89,632.90",Corporate Services-IMT,End User Contracts
